bitfinex-derivatives/quotes_ETHF0:USTF0_20260204
["timestamp","ask_amount","ask_price","bid_price","bid_amount"]
[1770214745211,7.54733674,2207.4,2206.2,6.92420072]
[1770214746811,7.32386807,2207.6,2206.2,6.92420072]
[1770214747216,7.55070807,2207.6,2206.2,6.92420072]
[1770214748408,7.32047674,2207.4,2206.2,6.92420072]
[1770214750118,0.00339133,2207.6,2206.2,6.92420072]
[1770214750321,7.32386807,2207.6,2206.2,6.92420072]
[1770214750819,0.00339133,2207.6,2206.2,6.92420072]
[1770214751215,0.00339133,2207.6,2206.4,6.91950525]
[1770214752718,0.00339133,2207.6,2206.7,6.91950525]
[1770214752920,0.00339133,2207.6,2206.7,7.14643525]
[1770214753413,7.32047674,2208.7,2207.3,6.91950525]
[1770214753616,7.32047674,2208.7,2207.3,7.14637525]
[1770214753824,7.32047674,2208.4,2207.3,6.91950525]
[1770214754520,7.32620011,2208.4,2207.3,6.91950525]
[1770214755314,7.32620011,2208.4,2206.8,0.045]
[1770214755315,0.22677,2208.3,2207.0,6.91950525]
[1770214755517,7.32620011,2208.4,2207.0,6.91950525]
[1770214755518,7.32047674,2208.2,2207.0,6.91950525]
[1770214755716,7.54725674,2208.2,2207.0,6.91950525]
[1770214757124,7.54725674,2208.2,2206.8,6.96450525]
[1770214760222,7.54725674,2208.2,2206.2,0.00469547]
[1770214760223,7.32047674,2208.0,2206.4,6.91950525]
[1770214760530,7.32047674,2207.4,2206.2,0.00469547]
[1770214760730,7.54733674,2207.4,2206.2,0.00469547]
[1770214761326,7.54733674,2207.4,2206.2,6.92420072]
[1770214762131,7.54736674,2207.2,2206.2,6.92420072]
[1770214762423,7.32047674,2207.5,2206.2,6.92420072]
[1770214762824,7.54732674,2207.5,2206.2,6.92420072]
[1770214764232,7.32047674,2207.5,2206.4,7.48287425]
[1770214764425,7.36763539,2207.8,2206.4,7.48287425]
[1770214764626,7.36763539,2207.8,2206.6,7.48287425]
[1770214765732,7.36763539,2207.8,2206.7,0.906]
[1770214765931,7.36763539,2207.8,2206.8,7.48287425]
[1770214767131,9.98366639,2207.8,2206.8,7.48287425]
[1770214767633,2.616031,2207.8,2206.8,7.48287425]
[1770214768230,9.98366639,2207.8,2206.8,7.48287425]
[1770214768732,2.616031,2207.8,2206.8,7.48287425]
[1770214768934,2.616031,2207.9,2207.0,7.48287425]
[1770214769130,9.98366639,2208.0,2207.0,7.48287425]
[1770214769326,2.616031,2207.9,2207.0,7.48287425]
[1770214769831,7.36763539,2207.8,2207.0,7.48287425]
[1770214770035,2.616031,2208.1,2207.1,0.14179725]
[1770214770239,2.616031,2208.1,2207.2,7.48287425]
[1770214770626,2.616031,2208.2,2207.2,7.48287425]
[1770214770832,0.00572337,2208.4,2207.4,7.70972425]
[1770214771134,0.00572337,2208.4,2207.6,7.48287425]
[1770214775735,5.27666395,2209.0,2207.6,7.48287425]
[1770214775736,41.88463247,2209.1,2207.8,7.48287425]
[1770214775940,2.616031,2209.3,2208.1,7.48287425]
[1770214776341,9.98366639,2209.4,2208.1,7.48287425]
[1770214776743,9.9873419,2209.4,2208.1,7.48792069]
[1770214776944,7.36763539,2209.3,2208.1,7.48792069]
[1770214777742,0.00367551,2209.4,2208.4,7.48287425]
[1770214778049,7.36763539,2209.2,2208.4,7.48287425]
[1770214778649,7.36763539,2209.2,2208.1,7.48792069]
[1770214779845,2.616031,2209.3,2208.1,7.48792069]
[1770214780151,7.36763539,2209.3,2208.1,7.48792069]
[1770214780547,2.61970651,2209.4,2208.1,7.48792069]
[1770214780748,0.00367551,2209.4,2208.1,7.48792069]
[1770214781445,0.00367551,2209.4,2208.3,7.48287425]
[1770214781749,0.00367551,2209.4,2208.5,7.48287425]
[1770214782143,0.00367551,2209.4,2208.5,7.70961425]
[1770214784049,7.3713109,2209.4,2208.2,7.48287425]
[1770214785052,7.3713109,2209.4,2208.3,0.9054]
[1770214785256,7.3713109,2209.4,2208.3,8.38827425]
[1770214789763,7.36763539,2209.1,2208.3,0.9054]
[1770214789958,7.36763539,2208.7,2207.6,7.52787425]
[1770214791056,7.36763539,2208.7,2207.6,7.5323184]
[1770214791857,7.36763539,2208.5,2207.6,0.00444415]
[1770214792151,2.616031,2208.7,2207.6,0.00444415]
[1770214792152,2.616031,2208.6,2207.6,7.4873184]
[1770214792355,2.616031,2208.7,2207.6,7.4873184]
[1770214793454,7.39434539,2208.8,2207.6,7.4873184]
[1770214794059,2.616031,2208.9,2207.6,7.4873184]
[1770214794357,2.616031,2209.9,2208.5,7.20557045]
[1770214794556,0.22662,2209.7,2208.5,7.20557045]
[1770214795556,7.18544318,2209.9,2208.5,7.20557045]
[1770214795863,0.00392708,2209.7,2208.5,7.20557045]
[1770214796360,7.18937026,2209.7,2208.5,7.20557045]
[1770214796756,0.00392708,2209.7,2208.5,7.20557045]
[1770214797357,0.00392708,2209.7,2208.5,7.43231045]
[1770214797763,7.42318436,2209.7,2208.5,7.20557045]
[1770214798158,0.00392708,2209.7,2208.5,7.20557045]
[1770214799358,0.00392708,2209.7,2208.5,7.43231045]
[1770214799961,7.42318436,2209.7,2208.5,7.20557045]
[1770214800265,7.41925728,2209.5,2208.5,7.20557045]
[1770214800460,10.03528828,2209.6,2208.5,7.20557045]
[1770214801360,7.41925728,2209.6,2208.5,7.20557045]
[1770214801557,10.03528828,2209.6,2208.5,7.20557045]
[1770214801863,7.64592728,2209.2,2208.0,7.47897969]
[1770214802165,7.41925728,2209.0,2208.0,7.47897969]
[1770214802461,7.41925728,2208.8,2207.7,7.47897969]
[1770214802662,0.2267,2208.9,2207.7,7.47897969]
[1770214802855,7.41925728,2208.8,2207.7,7.47897969]
[1770214803263,2.842731,2208.9,2207.7,7.47897969]
[1770214803264,0.2267,2208.9,2207.7,7.47897969]
[1770214803461,2.616031,2209.0,2207.7,7.47897969]
[1770214803861,2.616031,2209.1,2207.7,7.47897969]
[1770214804665,10.03528828,2209.1,2207.9,7.47897969]
[1770214805066,7.41925728,2209.0,2207.9,7.47897969]
[1770214805366,7.41925728,2208.9,2207.9,7.47897969]
[1770214805563,7.41925728,2208.5,2207.6,0.00444415]
[1770214805767,7.41925728,2208.4,2207.6,0.00444415]
[1770214806065,2.616031,2208.5,2207.6,7.48342384]
[1770214806264,2.616031,2208.6,2207.6,7.48342384]
[1770214806467,2.616031,2208.7,2207.6,7.48342384]
[1770214806669,2.616031,2208.8,2207.6,7.48342384]
[1770214806967,2.616031,2209.0,2207.7,7.47897969]
[1770214807365,10.03528828,2209.0,2207.7,7.47897969]
[1770214807663,7.41925728,2208.8,2207.7,7.47897969]
[1770214807867,7.41925728,2208.6,2207.6,0.04944415]
[1770214808070,10.03528828,2208.6,2207.6,0.04944415]
[1770214808270,7.41925728,2208.5,2207.6,0.04944415]
[1770214808470,7.41925728,2208.4,2207.6,0.04944415]
[1770214809160,7.41925728,2208.0,2207.1,7.47897969]
[1770214809565,7.41925728,2207.8,2206.6,7.47897969]
[1770214809961,39.89003118,2208.1,2206.6,7.47897969]
[1770214809962,2.616031,2208.0,2206.6,7.47897969]
[1770214810366,7.41925728,2207.9,2206.6,7.48370399]
[1770214811764,7.41925728,2207.8,2206.6,7.48370399]
[1770214812166,7.41925728,2207.6,2206.6,7.48370399]
[1770214812370,10.13136853,2207.6,2206.6,7.48370399]
[1770214812669,7.41925728,2207.5,2206.6,7.48370399]
[1770214813467,7.41925728,2207.5,2206.6,0.0047243]
[1770214813767,7.64610728,2207.5,2206.6,0.0047243]
[1770214813970,7.64610728,2207.5,2206.3,7.52397969]
[1770214814870,7.64610728,2207.5,2206.3,7.52865064]
[1770214815268,0.22685,2207.5,2206.3,7.52865064]
[1770214815475,2.616031,2207.8,2206.8,7.47897969]
[1770214815772,0.00567477,2208.0,2206.8,7.70588969]
[1770214816166,7.42493205,2208.0,2206.8,7.47897969]
[1770214816769,0.00567477,2208.0,2206.8,7.47897969]
[1770214817478,0.00567477,2208.0,2207.2,7.47897969]
[1770214817774,2.616031,2208.8,2207.2,7.47897969]
[1770214818075,10.03528828,2209.3,2207.8,7.47897969]
[1770214818276,7.41925728,2209.3,2207.8,7.47897969]
[1770214818471,10.03528828,2209.6,2208.1,7.47897969]
[1770214818870,7.41925728,2209.5,2208.1,7.4834024]
[1770214819272,7.41925728,2209.2,2208.1,7.4834024]
[1770214819671,0.22665,2209.4,2208.1,7.4834024]
[1770214819871,7.41925728,2209.2,2208.1,7.4834024]
[1770214820871,0.22665,2209.4,2208.1,7.4834024]
[1770214821072,7.64590728,2209.4,2208.1,7.4834024]
[1770214821279,7.41925728,2209.2,2208.1,7.4834024]
[1770214821476,7.41925728,2208.8,2208.1,0.00442271]
[1770214822880,7.41925728,2208.8,2207.5,7.47897969]
[1770214822881,7.64597728,2208.8,2207.5,7.47897969]
[1770214823276,2.616031,2208.9,2207.5,7.47897969]
[1770214823577,7.41925728,2208.9,2207.5,7.47897969]
[1770214823779,7.41925728,2208.9,2207.5,7.48298893]
[1770214824383,2.616031,2209.1,2207.7,7.62257144]
[1770214824684,7.05125582,2209.2,2207.7,7.84939144]
[1770214824980,7.05125582,2209.3,2208.0,7.62257144]
[1770214825985,7.05125582,2209.2,2208.0,7.62257144]
[1770214826789,2.842681,2209.4,2208.0,7.62257144]
[1770214826981,9.89393682,2209.4,2208.0,7.62257144]
[1770214827183,2.616031,2209.4,2208.0,7.62257144]
[1770214827384,7.05125582,2209.4,2208.0,7.62257144]
[1770214827784,7.05125582,2209.3,2208.0,7.62257144]
[1770214827985,7.05125582,2208.9,2207.7,7.62257144]
[1770214828387,7.05125582,2208.8,2207.7,7.62257144]
[1770214829884,2.616031,2208.9,2207.7,7.62257144]
[1770214830086,9.66728682,2208.9,2207.7,7.62257144]
[1770214830286,7.05125582,2208.8,2207.7,7.62257144]
[1770214830791,7.05125582,2208.2,2207.1,7.62257144]
[1770214831092,7.05125582,2207.8,2206.6,7.62257144]
[1770214831282,7.05125582,2207.7,2206.6,7.62257144]
[1770214831487,2.616031,2207.9,2206.6,7.62257144]
[1770214831888,2.62130333,2207.9,2206.6,7.62685088]
[1770214832088,9.67255915,2207.9,2206.6,7.62685088]
[1770214832286,2.84811333,2207.9,2206.6,7.62685088]
[1770214832485,0.00527233,2207.9,2206.6,7.62685088]
[1770214832692,0.00527233,2207.9,2206.6,7.67185088]
[1770214833684,0.00527233,2207.9,2206.6,7.89879088]
[1770214834791,0.00527233,2207.9,2206.8,7.84949144]
[1770214834991,0.00527233,2207.9,2206.9,7.62257144]
[1770214836689,2.616031,2208.5,2207.0,7.62257144]
[1770214836892,2.616031,2208.6,2207.0,7.62257144]
[1770214837093,2.616031,2208.6,2206.6,6.42159413]
[1770214837094,7.27809582,2207.6,2206.6,0.00427944]
[1770214837292,7.05125582,2207.3,2206.0,7.62257144]
[1770214837485,9.76336707,2207.1,2206.0,7.62257144]
[1770214837691,7.05125582,2207.0,2206.0,7.62257144]
[1770214838393,0.00527363,2207.0,2206.3,7.62257144]
[1770214838596,7.05125582,2207.6,2206.3,7.62257144]
[1770214838991,7.27810582,2207.5,2206.3,7.62257144]
[1770214839597,7.2815313,2207.5,2206.3,7.62257144]
[1770214840293,7.0546813,2207.5,2206.3,7.62257144]
[1770214840489,0.00342548,2207.5,2206.3,7.62257144]
[1770214840698,7.0546813,2207.5,2206.3,7.62257144]
[1770214841695,0.00342548,2207.5,2206.3,7.62257144]
[1770214842097,0.00342548,2207.5,2206.3,7.84954144]
[1770214842497,0.00342548,2207.5,2206.5,7.62257144]
[1770214849601,2.616031,2208.0,2206.7,7.62257144]
[1770214849805,7.05125582,2208.0,2206.7,7.62257144]
[1770214850008,7.05125582,2207.8,2206.7,7.62257144]
[1770214850208,7.05125582,2207.7,2206.7,7.62257144]
[1770214850607,7.05125582,2207.6,2206.7,7.62257144]
[1770214851106,7.05616059,2207.7,2206.4,7.62257144]
[1770214851302,7.05125582,2207.4,2206.4,7.62257144]
[1770214851507,7.05125582,2207.4,2206.1,7.62257144]
[1770214852210,2.842881,2207.5,2206.1,7.62257144]
[1770214852409,9.89413682,2207.5,2206.1,7.62257144]
[1770214853010,2.616031,2207.6,2206.1,7.62257144]
[1770214853409,2.616031,2207.6,2206.1,7.84956144]
[1770214854010,39.93847542,2207.7,2206.5,7.01227384]
[1770214854011,0.00490477,2207.7,2206.5,7.01227384]
[1770214854709,0.00490477,2207.7,2206.8,7.01227384]
[1770214856412,7.46257277,2207.7,2206.8,7.01227384]
[1770214856617,0.00490477,2207.7,2206.8,7.01227384]
[1770214857611,0.00490477,2207.7,2206.8,7.23918384]
[1770214857917,7.578812,2208.1,2207.2,7.01227384]
[1770214858110,10.194843,2208.1,2207.2,7.01227384]
[1770214858511,7.578812,2208.0,2206.9,7.27888274]
[1770214858818,10.194843,2207.9,2206.9,7.27888274]
[1770214859014,7.805642,2207.7,2206.6,7.27888274]
[1770214859219,10.194843,2207.6,2206.6,7.27888274]
[1770214859418,7.578812,2207.5,2206.6,7.27888274]
[1770214859619,10.194843,2207.5,2206.6,7.27888274]
[1770214860420,2.616031,2207.5,2206.6,7.27888274]
[1770214860919,2.616031,2207.6,2206.6,7.27888274]
[1770214861115,7.578812,2207.5,2206.6,7.27888274]
[1770214861317,7.578812,2207.2,2206.2,2.69807705]
[1770214861517,7.578812,2206.9,2206.1,7.27888274]
[1770214861723,7.578812,2206.7,2206.0,0.00372807]
[1770214862025,10.194843,2206.7,2206.0,0.00372807]
[1770214862217,7.578812,2206.7,2205.8,7.27888274]
[1770214862421,2.616031,2207.0,2205.8,7.50589274]
[1770214862623,2.661031,2207.3,2206.0,7.27888274]
[1770214863018,0.045,2207.3,2206.1,7.27888274]
[1770214863213,10.194843,2207.5,2206.3,7.27888274]
[1770214863418,7.578812,2207.3,2206.3,7.27888274]
[1770214863619,2.616031,2207.7,2206.5,7.27888274]
[1770214864219,2.616031,2207.7,2206.6,0.22693]
[1770214864422,0.00408688,2208.0,2206.6,0.22693]
[1770214864423,0.00408688,2208.0,2207.3,7.27888274]
[1770214866623,2.616031,2208.5,2207.3,7.27888274]
[1770214866824,2.616031,2208.7,2207.4,7.27888274]
[1770214867323,10.194843,2208.9,2207.5,7.50573274]
[1770214867523,2.62023155,2208.9,2207.5,7.27888274]
[1770214867721,2.62023155,2208.9,2207.9,7.27888274]
[1770214867722,0.00420055,2208.9,2207.9,7.27888274]
[1770214867917,7.58301255,2208.9,2207.9,7.2844033]
[1770214868122,7.58301255,2208.9,2207.9,0.00552056]
[1770214868323,7.58301255,2208.9,2207.9,7.2844033]
[1770214868523,0.00420055,2208.9,2207.9,7.2844033]
[1770214869424,7.58301255,2208.9,2207.9,7.2844033]
[1770214869816,2.616031,2209.3,2207.9,7.2844033]
[1770214870018,7.578812,2209.5,2208.2,7.27888274]
[1770214870227,7.578812,2209.5,2208.0,0.045]
[1770214870228,7.578812,2209.5,2208.3,7.27888274]
[1770214870418,7.578812,2209.5,2208.0,0.045]
[1770214870419,8.848052,2209.5,2208.0,7.32388274]
[1770214870623,7.578812,2209.2,2208.0,7.32388274]
[1770214870820,7.578812,2209.5,2208.0,7.32388274]
[1770214871026,0.00324399,2209.2,2208.0,7.32388274]
[1770214871526,0.00324399,2209.2,2208.0,10.0231719]
[1770214871732,0.00324399,2209.2,2208.1,7.27888274]
[1770214872328,0.07879721,2210.0,2208.5,7.27888274]
[1770214872628,7.578812,2209.8,2208.6,7.27888274]
[1770214872828,7.578812,2209.5,2208.1,7.27888274]
[1770214873332,7.578812,2209.1,2208.0,0.045]
[1770214873635,7.578812,2209.1,2207.9,0.00552056]
[1770214873636,7.578812,2208.9,2207.9,0.00552056]
[1770214873933,2.65304564,2209.0,2207.6,7.27888274]
[1770214874130,7.578812,2209.1,2207.6,7.27888274]
[1770214874833,7.578812,2209.1,2207.6,7.28385343]
[1770214875034,7.578812,2208.9,2207.6,7.28385343]
[1770214875531,7.623812,2208.9,2207.6,7.28385343]
[1770214875733,7.578812,2208.6,2207.3,7.27888274]
[1770214876133,7.578812,2208.3,2207.0,7.27888274]
[1770214876828,7.578812,2208.3,2207.0,7.28458234]
[1770214877536,2.65304564,2208.5,2207.0,7.28458234]
[1770214877837,7.578812,2208.4,2207.0,7.28458234]
[1770214878534,7.578812,2208.7,2207.0,7.28458234]
[1770214878735,7.578812,2208.7,2207.0,8.55522234]
[1770214879437,7.578812,2208.7,2207.0,7.51148234]
[1770214879837,7.578812,2208.7,2207.0,7.28458234]
[1770214880037,7.805602,2208.1,2206.6,7.27888274]
[1770214880238,7.578812,2207.7,2206.3,7.27888274]
[1770214880440,7.578812,2207.6,2206.3,7.27888274]
[1770214881139,7.58345413,2207.6,2206.3,7.28212471]
[1770214881538,7.578812,2206.9,2205.4,7.27888274]
[1770214881737,7.578812,2206.8,2205.4,7.27888274]
[1770214882638,8.849812,2206.4,2204.8,7.27888274]
[1770214882837,7.578812,2206.0,2204.8,7.27888274]
[1770214883037,2.65304564,2206.2,2204.8,7.27888274]
[1770214883238,7.578812,2206.3,2204.8,7.27888274]
[1770214883439,7.578812,2206.2,2204.8,7.27888274]
[1770214883643,0.00437896,2206.2,2204.8,7.28433575]
[1770214884037,2.65304564,2207.1,2205.1,8.18900113]
[1770214884342,7.23264723,2207.4,2205.4,7.14435113]
[1770214884541,7.23264723,2207.3,2205.4,7.14435113]
[1770214885244,7.23753007,2207.3,2205.4,7.14435113]
[1770214885939,0.00488284,2207.3,2205.6,7.14435113]
[1770214886140,0.00488284,2207.3,2205.8,7.14435113]
[1770214886939,0.00488284,2207.3,2206.0,8.18856113]
[1770214887139,7.23264723,2207.9,2206.2,7.14435113]
[1770214887541,7.23264723,2207.9,2206.5,7.14435113]
[1770214888144,7.23264723,2207.7,2206.5,7.14982376]
[1770214889244,7.45949723,2207.5,2206.5,0.00547263]
[1770214889644,7.45949723,2207.5,2206.5,7.14982376]
[1770214890141,7.23264723,2207.5,2206.5,7.14982376]
[1770214890342,7.23264723,2207.8,2206.5,7.14982376]
[1770214890747,0.00512747,2207.9,2206.5,7.14982376]
[1770214890942,7.2377747,2207.9,2206.5,0.00547263]
[1770214891149,7.23264723,2207.7,2206.5,0.00547263]
[1770214891349,7.23264723,2207.5,2206.5,0.00547263]
[1770214891648,7.45949723,2207.5,2206.5,0.00547263]
[1770214891852,7.45949723,2207.5,2206.1,0.8559]
[1770214892244,10.11254287,2207.5,2206.1,0.8559]
[1770214892444,10.11254287,2207.5,2206.1,8.00025113]
[1770214892445,7.23264723,2207.4,2206.1,8.00025113]
[1770214892842,7.23264723,2207.7,2206.1,8.00613414]
[1770214893247,48.03264723,2207.6,2206.1,8.00613414]
[1770214893449,7.23264723,2207.5,2206.1,8.00613414]
[1770214893650,10.11251287,2207.8,2206.1,8.00613414]
[1770214893849,7.23264723,2207.7,2206.1,8.00613414]
[1770214894050,7.23264723,2207.7,2206.1,8.23312414]
[1770214894249,7.23264723,2207.7,2206.3,7.14435113]
[1770214894448,0.00512747,2207.9,2206.3,7.14435113]
[1770214894649,7.2377747,2207.9,2206.3,7.14435113]
[1770214895849,7.23264723,2208.5,2207.3,0.22687]
[1770214896048,7.23264723,2208.8,2207.6,7.14435113]
[1770214896650,0.22669,2209.1,2207.6,7.14435113]
[1770214896951,0.00394045,2209.1,2207.8,7.14435113]
[1770214897153,0.00394045,2209.1,2207.8,7.14877801]
[1770214897644,0.00394045,2209.1,2207.8,7.37559801]
[1770214898351,0.00394045,2209.1,2208.0,7.14435113]
[1770214901050,7.23264723,2209.9,2208.6,7.14435113]
[1770214901657,7.23264723,2210.2,2208.6,7.37108113]
[1770214902055,7.23760172,2210.2,2208.6,7.37108113]
[1770214902357,0.00495449,2210.2,2208.6,7.37108113]
[1770214902656,7.46417172,2210.2,2208.6,7.37108113]
[1770214902853,7.23264723,2209.8,2208.6,7.14435113]
[1770214903249,7.23264723,2209.8,2208.2,7.14435113]
[1770214903250,7.45925723,2209.8,2208.2,7.14435113]
[1770214903455,7.45925723,2209.8,2208.2,7.37112113]
[1770214904252,7.23264723,2209.6,2208.2,7.14435113]
[1770214904554,7.45927723,2209.6,2208.2,7.14435113]
[1770214904753,7.23264723,2209.3,2208.2,7.14435113]
[1770214905750,7.23264723,2209.3,2208.3,0.9056]
[1770214905950,7.23264723,2209.1,2208.3,0.9056]
[1770214906356,7.23264723,2208.3,2207.2,7.14435113]
[1770214906554,7.23264723,2208.7,2207.2,7.14435113]
[1770214906957,7.23264723,2208.6,2207.2,7.14435113]
[1770214907363,7.23734317,2208.6,2207.2,7.15017391]
[1770214907564,0.00469594,2208.6,2207.2,7.15017391]
[1770214907763,0.00469594,2208.6,2207.2,7.37705391]
[1770214907963,0.00469594,2208.6,2207.4,7.14435113]
[1770214908162,0.00469594,2208.6,2207.4,7.37120113]
[1770214908359,7.23734317,2208.6,2207.4,7.14435113]
[1770214909460,7.23734317,2208.6,2207.3,0.9055]
[1770214909660,7.23734317,2208.6,2207.3,8.04985113]
[1770214909863,7.46408317,2208.6,2207.3,8.04985113]
[1770214910058,0.2268,2208.0,2207.3,0.9055]
[1770214910260,7.23264723,2207.9,2206.7,7.14435113]
[1770214911161,7.45949723,2207.5,2206.7,0.00516246]
[1770214911467,7.45949723,2207.5,2206.0,7.14435113]
[1770214911862,7.23264723,2207.3,2206.0,7.14435113]
[1770214912163,0.22689,2207.1,2206.0,7.14435113]
[1770214912461,7.45948723,2207.6,2206.0,7.14781622]
[1770214913165,7.45949723,2207.5,2206.0,7.14781622]
[1770214914065,0.22685,2207.5,2206.0,7.14781622]
[1770214914270,0.22685,2207.5,2206.0,7.37481622]
[1770214914668,7.33758833,2207.8,2206.2,7.77925343]
[1770214914669,0.045,2207.8,2206.2,7.77925343]
[1770214915171,0.045,2207.8,2206.4,7.55227343]
[1770214915370,40.94391988,2208.4,2206.3,0.27197]
[1770214915371,7.29258833,2208.2,2206.8,7.55227343]
[1770214915781,7.29258833,2208.0,2206.8,7.55227343]
[1770214916572,0.22679,2208.1,2206.8,7.55227343]
[1770214916969,7.51941833,2207.7,2206.8,7.55227343]
[1770214917167,7.51941833,2207.7,2206.5,7.55227343]
[1770214917372,7.29258833,2206.6,2205.6,7.55227343]
[1770214917568,7.51957833,2206.1,2205.0,7.55227343]
[1770214918169,0.22699,2206.1,2205.0,7.55227343]
[1770214918375,0.232356,2206.1,2205.0,7.55564046]
[1770214918571,7.44115486,2206.1,2205.0,7.55564046]
[1770214918972,0.232356,2206.1,2205.0,7.55564046]
[1770214919272,7.44115486,2206.1,2205.0,7.55564046]
[1770214920574,7.20879886,2205.7,2204.4,7.48859421]
[1770214920784,7.20879886,2205.5,2204.4,7.48859421]
[1770214921071,7.43584886,2205.6,2204.4,7.48859421]
[1770214921576,7.20879886,2205.2,2204.3,0.45364847]
[1770214921874,7.20879886,2204.8,2203.8,7.48859421]
[1770214922075,7.20879886,2205.3,2203.8,7.48859421]
[1770214922268,7.43586886,2205.3,2203.8,7.48859421]
[1770214922670,40.8,2205.2,2203.8,7.48859421]
[1770214922877,40.8,2205.2,2203.8,7.49400298]
[1770214923569,48.00879886,2205.2,2203.8,7.49400298]
[1770214923775,40.8,2205.2,2203.8,7.49400298]
[1770214923971,7.20879886,2205.1,2203.8,7.49400298]
[1770214924175,7.43592886,2204.8,2203.8,7.49400298]
[1770214924376,7.43594886,2204.6,2203.5,7.48859421]
[1770214924973,0.22715,2204.6,2203.5,7.48859421]
[1770214925374,7.43594886,2204.6,2203.5,0.00319537]
[1770214925770,7.20879886,2204.4,2203.5,0.00319537]
[1770214925968,7.212165,2204.4,2203.5,0.00319537]
[1770214926172,7.212165,2204.4,2202.4,0.27237]
[1770214926173,7.43599886,2204.2,2202.5,7.48859421]
[1770214926371,0.22729,2203.3,2201.5,7.48859421]
[1770214926574,7.43601886,2203.9,2202.1,7.71599421]
[1770214926777,7.43601886,2203.9,2202.3,7.48859421]
[1770214926977,40.8,2203.8,2202.3,7.71597421]
[1770214927174,7.25379886,2204.2,2202.5,7.71595421]
[1770214927381,7.48098886,2204.2,2202.5,7.71595421]
[1770214927673,7.20879886,2204.0,2202.5,7.48859421]
[1770214927878,0.22724,2203.8,2202.5,7.48859421]
[1770214928076,0.045,2204.2,2202.5,7.48859421]
[1770214928383,0.00336614,2204.4,2203.2,7.71588421]
[1770214928573,0.00336614,2204.4,2203.6,7.48859421]
[1770214928776,7.20879886,2205.0,2203.6,7.48859421]
[1770214928977,0.22715,2204.6,2203.2,7.48859421]
[1770214929180,0.22717,2204.4,2203.2,7.48859421]
[1770214929774,0.23056092,2204.4,2203.2,7.48859421]
[1770214929978,0.22718,2204.3,2203.2,7.48859421]
[1770214930282,0.22722,2203.9,2202.9,7.48859421]
[1770214930476,0.22726,2203.5,2202.4,7.48859421]
[1770214930882,7.43605886,2203.5,2202.4,7.48859421]
[1770214931076,7.20879886,2203.3,2202.1,7.48859421]
[1770214931281,0.22727,2203.4,2202.3,7.49344643]
[1770214931675,7.43606886,2203.4,2202.3,7.49344643]
[1770214932578,7.20879886,2203.0,2202.3,0.00485222]
[1770214932780,7.20879886,2203.2,2201.7,7.48859421]
[1770214933181,7.43613886,2202.7,2201.7,7.48859421]
[1770214933385,0.22734,2202.7,2201.0,7.48859421]
[1770214933781,0.23305633,2202.7,2201.0,7.49282599]
[1770214933982,0.23305633,2202.7,2201.0,7.72033599]
[1770214934176,0.00571633,2202.7,2201.6,7.48859421]
[1770214934385,7.43607886,2203.3,2201.6,7.48859421]
[1770214934980,0.22728,2203.3,2201.6,7.71604421]
[1770214935180,7.48102886,2203.8,2201.8,7.71602421]
[1770214935386,7.43603886,2203.7,2202.0,7.48859421]
[1770214935582,0.04969315,2203.8,2202.4,7.48859421]
[1770214935782,0.00469315,2203.8,2202.6,7.48859421]
[1770214935984,0.00469315,2203.8,2202.6,7.49245755]
[1770214936178,0.00469315,2203.8,2202.6,7.71980755]
[1770214936485,1.08985,2204.7,2202.8,7.71592421]
[1770214936486,0.22715,2204.6,2202.8,7.71592421]
[1770214936687,0.22717,2204.4,2203.0,7.48859421]
[1770214937079,7.20879886,2204.9,2203.1,1.0456]
[1770214937280,7.20879886,2205.9,2204.2,7.48859421]
[1770214937587,0.22704,2205.6,2204.2,7.48859421]
[1770214938383,7.21443511,2205.6,2204.2,7.49200007]
[1770214939190,7.43585886,2205.5,2204.2,7.49200007]
[1770214939389,0.22706,2205.5,2204.2,7.49200007]
[1770214939590,0.00563625,2205.6,2204.2,7.49200007]
[1770214939991,0.00563625,2205.6,2204.2,7.71918007]
[1770214940186,7.20879886,2206.3,2204.5,7.48859421]
[1770214940586,0.27195,2206.5,2204.7,7.71572421]
[1770214940782,7.20879886,2206.0,2204.7,7.48859421]
[1770214940990,0.22703,2205.7,2204.7,7.48859421]
[1770214941292,0.23116143,2205.7,2204.7,7.48859421]
[1770214941584,7.43996029,2205.7,2204.7,7.48859421]
[1770214941785,0.23116143,2205.7,2204.7,7.48859421]
[1770214941985,7.43584886,2205.6,2204.4,7.48859421]
[1770214942387,7.43997029,2205.7,2204.4,7.48859421]
[1770214943290,7.43583886,2205.6,2204.4,7.48859421]
[1770214943883,7.43583886,2205.6,2204.2,0.00340586]
[1770214943884,7.46604312,2205.3,2204.2,0.00340586]
[1770214944296,7.46604312,2205.3,2204.2,7.32252658]
[1770214944494,0.2271,2205.0,2204.2,0.00340586]
[1770214944791,0.2271,2205.0,2204.2,7.32252658]
[1770214945095,0.22706,2205.5,2204.2,7.32252658]
[1770214945295,0.22706,2205.4,2204.2,7.32252658]
[1770214949495,7.46602312,2205.4,2204.2,7.32252658]
[1770214950296,0.22707,2205.3,2204.2,7.32252658]
[1770214952195,0.00413143,2205.7,2204.2,7.32252658]
[1770214952696,0.00413143,2205.7,2204.2,7.54971658]
[1770214953196,0.23117143,2205.7,2204.2,7.54971658]
[1770214954095,0.22707,2205.4,2204.2,7.32252658]
[1770214954293,0.22708,2205.2,2204.2,7.32252658]
[1770214954998,0.22708,2205.2,2203.5,7.31912072]
[1770214954999,7.23896312,2204.9,2203.5,7.31912072]
[1770214955294,3.76414955,2205.0,2203.5,7.31912072]
[1770214955295,0.22716,2204.5,2203.5,7.31912072]
[1770214955595,41.02712,2204.9,2203.5,7.31912072]
[1770214955797,0.045,2205.0,2203.5,7.54637072]
[1770214956098,0.045,2205.0,2203.6,0.22725]
[1770214956288,0.045,2205.0,2203.7,7.31912072]
[1770214956697,0.045,2205.0,2203.7,7.54636072]
[1770214957088,0.045,2205.0,2203.9,7.31912072]
[1770214957490,0.045,2205.0,2203.9,7.54633072]
[1770214958097,0.045,2205.0,2204.1,7.31912072]
[1770214958597,0.22705,2205.5,2204.1,7.31912072]
[1770214958800,2.60727739,2205.7,2204.4,7.31912072]
[1770214959000,0.00413143,2205.7,2204.4,7.31912072]
[1770214959396,0.00413143,2205.7,2204.4,7.54628072]
[1770214959596,0.00413143,2205.7,2204.6,7.31912072]
[1770214959793,0.00413143,2205.7,2204.8,7.31912072]
[1770214959996,0.045,2205.9,2204.8,7.31912072]
[1770214960407,3.05314596,2206.4,2205.0,7.54622072]
[1770214960408,0.45,2206.4,2205.0,7.54622072]
[1770214961004,0.4553622,2206.4,2205.0,7.54622072]
[1770214962005,7.46595312,2206.2,2205.1,7.31912072]
[1770214962200,0.4553622,2206.4,2205.1,7.32278408]
[1770214962401,7.69432532,2206.4,2205.1,7.32278408]
[1770214962905,7.46593312,2206.3,2205.1,7.32278408]
[1770214963905,7.46601312,2205.5,2205.0,1.4754979]